bitfinex-derivatives/quotes_BNBF0:USTF0_20250524
["timestamp","ask_amount","ask_price","bid_price","bid_amount"]
[1748051956906,1.6141834,660.47,660.18,1.426]
[1748051957104,1.6141834,660.46,660.18,1.426]
[1748051957301,1.6141834,660.45,660.18,1.426]
[1748051957500,1.6141834,660.44,660.18,1.426]
[1748051957700,1.6141834,660.43,660.18,1.426]
[1748051957903,1.6141834,660.42,660.18,1.426]
[1748051958105,1.10788625,660.41,660.18,1.426]
[1748051958304,1.10827604,660.4,660.18,1.426]
[1748051958501,1.10827604,660.39,660.18,1.426]
[1748051958701,1.10827604,660.38,660.18,1.426]
[1748051958906,1.10827604,660.37,660.18,1.426]
[1748051959107,1.1288764,660.54,660.18,1.426]
[1748051959308,1.6146635,660.53,660.18,1.426]
[1748051959505,1.6146635,660.52,660.18,1.426]
[1748051959709,1.6146635,660.51,660.18,1.426]
[1748051959913,1.6146635,660.5,660.18,1.426]
[1748051960206,1.6146904,660.49,660.18,1.426]
[1748051960411,1.6146904,660.48,660.18,1.426]
[1748051960610,1.6146904,660.47,660.18,1.426]
[1748051960805,1.6146904,660.46,660.18,1.426]
[1748051961007,1.6146904,660.45,660.18,1.426]
[1748051961210,1.6146904,660.44,660.18,1.426]
[1748051961409,1.6146904,660.43,660.18,1.426]
[1748051961607,1.6146904,660.42,660.18,1.426]
[1748051961805,1.6146904,660.41,660.18,1.426]
[1748051962007,1.10812714,660.4,660.18,1.426]
[1748051962209,1.10812714,660.39,660.18,1.426]
[1748051962406,1.10812714,660.38,660.18,1.426]
[1748051962606,1.10812714,660.37,660.18,1.426]
[1748051962808,1.1288764,660.51,660.18,1.426]
[1748051963008,1.61455985,660.5,660.18,1.426]
[1748051963309,1.61455985,660.49,660.18,1.426]
[1748051963509,1.61455985,660.48,660.18,1.426]
[1748051963707,1.1288764,660.51,660.18,1.426]
[1748051963906,1.61455299,660.5,660.18,1.426]
[1748051964209,0.30271841,660.68,660.18,1.426]
[1748051964210,1.1288764,660.45,660.18,1.426]
[1748051964410,1.61455299,660.44,660.18,1.426]
[1748051964610,1.61455299,660.43,660.18,1.426]
[1748051964811,1.61455299,660.42,660.18,1.426]
[1748051965006,1.61455299,660.41,660.18,1.426]
[1748051965210,1.61476567,660.4,660.18,1.426]
[1748051965409,1.10808895,660.39,660.18,1.426]
[1748051965610,1.10808895,660.38,660.18,1.426]
[1748051965912,1.10808895,660.37,660.18,1.426]
[1748051966109,1.10808895,660.36,660.18,1.426]
[1748051966311,1.1288764,660.45,660.18,1.426]
[1748051966515,1.61539245,660.44,660.18,1.426]
[1748051966712,1.61539245,660.43,660.18,1.426]
[1748051966909,1.61539245,660.42,660.18,1.426]
[1748051967114,1.61539245,660.41,660.18,1.426]
[1748051967311,1.61539245,660.4,660.18,1.426]
[1748051967515,1.10872614,660.39,660.18,1.426]
[1748051967712,1.10872614,660.38,660.18,1.426]
[1748051967918,1.10872614,660.37,660.18,1.426]
[1748051968116,1.10872614,660.36,660.18,1.426]
[1748051968314,1.1288764,660.48,660.18,1.426]
[1748051968518,1.61623388,660.47,660.18,1.426]
[1748051968718,1.61623388,660.46,660.18,1.426]
[1748051968918,1.61623388,660.45,660.18,1.426]
[1748051969119,1.61623388,660.44,660.18,1.426]
[1748051969319,1.61623388,660.43,660.18,1.426]
[1748051969521,1.61623388,660.42,660.18,1.426]
[1748051969715,1.61623388,660.41,660.18,1.426]
[1748051969916,1.61623388,660.4,660.18,1.426]
[1748051970117,1.10901934,660.39,660.18,1.426]
[1748051970320,1.10901934,660.38,660.18,1.426]
[1748051970520,1.1288764,660.48,660.18,1.426]
[1748051970521,1.10901934,660.37,660.18,1.426]
[1748051970721,1.10901934,660.36,660.18,1.426]
[1748051970924,1.1288764,660.48,660.18,1.426]
[1748051971223,2.74461256,660.47,660.18,1.426]
[1748051971424,1.61573616,660.46,660.18,1.426]
[1748051971721,1.61573616,660.45,660.18,1.426]
[1748051971922,1.61573616,660.44,660.18,1.426]
[1748051972121,1.61573616,660.43,660.18,1.426]
[1748051972320,1.61573616,660.42,660.18,1.426]
[1748051972517,1.61573616,660.41,660.18,1.426]
[1748051972721,1.61573616,660.4,660.18,1.426]
[1748051972920,1.10827412,660.39,660.18,1.426]
[1748051973118,1.10827412,660.38,660.18,1.426]
[1748051973317,1.10827412,660.37,660.18,1.426]
[1748051973517,1.1288764,660.47,660.18,1.426]
[1748051973717,1.61238662,660.46,660.18,1.426]
[1748051973922,1.61238662,660.45,660.18,1.426]
[1748051974216,1.61238662,660.44,660.18,1.426]
[1748051974522,1.61238662,660.43,660.18,1.426]
[1748051974723,1.10702749,660.42,660.18,1.426]
[1748051974922,1.10702749,660.41,660.18,1.426]
[1748051975222,1.10702749,660.4,660.18,1.426]
[1748051975522,1.1288764,660.48,660.18,1.426]
[1748051975725,1.61235121,660.47,660.18,1.426]
[1748051975920,1.61235121,660.46,660.18,1.426]
[1748051976120,1.61235121,660.45,660.18,1.426]
[1748051976419,1.10704214,660.44,660.18,1.426]
[1748051976617,1.10704214,660.43,660.18,1.426]
[1748051976819,1.10704214,660.42,660.18,1.426]
[1748051977019,1.10704214,660.41,660.18,1.426]
[1748051977222,1.1288764,660.51,660.18,1.426]
[1748051977418,1.61073207,660.5,660.18,1.426]
[1748051977622,1.61073207,660.49,660.18,1.426]
[1748051977818,1.61073207,660.48,660.18,1.426]
[1748051978022,1.61073207,660.47,660.18,1.426]
[1748051978220,1.61065485,660.46,660.18,1.426]
[1748051978518,1.61065485,660.45,660.18,1.426]
[1748051978724,1.10542296,660.44,660.18,1.426]
[1748051978927,1.10542296,660.43,660.18,1.426]
[1748051979125,1.10542296,660.42,660.18,1.426]
[1748051979423,1.10542296,660.41,660.18,1.426]
[1748051979621,1.1288764,660.51,660.18,1.426]
[1748051979822,1.61024914,660.5,660.18,1.426]
[1748051980023,0.5048778,660.49,660.18,1.426]
[1748051980219,1.61025584,660.48,660.18,1.426]
[1748051980423,1.61025584,660.47,660.18,1.426]
[1748051980624,1.61025584,660.46,660.18,1.426]
[1748051980920,1.61025584,660.45,660.18,1.426]
[1748051981118,1.10537804,660.44,660.18,1.426]
[1748051981325,1.10537804,660.43,660.18,1.426]
[1748051981525,1.10537804,660.42,660.18,1.426]
[1748051981823,1.10537804,660.41,660.18,1.426]
[1748051982019,1.1288764,660.5,660.18,1.426]
[1748051982226,1.60891336,660.49,660.18,1.426]
[1748051982521,1.60891336,660.48,660.18,1.426]
[1748051982719,1.60891336,660.47,660.18,1.426]
[1748051983024,1.60891336,660.46,660.18,1.426]
[1748051983224,1.10490784,660.45,660.18,1.426]
[1748051983425,1.10490784,660.44,660.18,1.426]
[1748051983625,1.10490784,660.43,660.18,1.426]
[1748051983820,1.10480828,660.42,660.18,1.426]
[1748051984019,1.1288764,660.48,660.18,1.426]
[1748051984222,1.60876736,660.47,660.18,1.426]
[1748051984424,1.60876736,660.46,660.18,1.426]
[1748051984626,1.10480791,660.45,660.18,1.426]
[1748051984919,1.10480791,660.44,660.18,1.426]
[1748051985119,1.10480791,660.43,660.18,1.426]
[1748051985322,1.10480791,660.42,660.18,1.426]
[1748051985524,1.1288764,660.48,660.18,1.426]
[1748051985725,1.60796113,660.47,660.18,1.426]
[1748051985927,1.60796113,660.46,660.18,1.426]
[1748051986125,1.10425407,660.45,660.18,1.426]
[1748051986325,1.10425407,660.44,660.18,1.426]
[1748051986525,1.10425407,660.43,660.18,1.426]
[1748051986725,1.10425407,660.42,660.18,1.426]
[1748051987026,1.1288764,660.48,660.18,1.426]
[1748051987228,1.60787717,660.47,660.18,1.426]
[1748051987427,1.60785629,660.46,660.18,1.426]
[1748051987726,1.10417563,660.45,660.18,1.426]
[1748051987926,1.1288764,660.48,660.18,1.426]
[1748051987927,1.10417563,660.44,660.18,1.426]
[1748051988127,1.10417563,660.43,660.18,1.426]
[1748051988327,1.1288764,660.48,660.18,1.426]
[1748051988528,1.60782759,660.47,660.18,1.426]
[1748051988723,1.10419829,660.46,660.18,1.426]
[1748051988926,1.10419829,660.45,660.18,1.426]
[1748051989131,1.10418058,660.44,660.18,1.426]
[1748051989339,1.10418058,660.43,660.18,1.426]
[1748051989529,1.1288764,660.48,660.18,1.426]
[1748051989736,1.60750806,660.47,660.18,1.426]
[1748051989935,1.10415654,660.46,660.18,1.426]
[1748051990129,1.10415654,660.45,660.18,1.426]
[1748051990334,1.10415654,660.44,660.18,1.426]
[1748051990530,1.10415654,660.43,660.18,1.426]
[1748051990736,1.1288764,660.48,660.18,1.426]
[1748051991035,1.60723849,660.47,660.18,1.426]
[1748051991236,1.10390072,660.46,660.18,1.426]
[1748051991435,1.10390072,660.45,660.18,1.426]
[1748051991635,1.10390072,660.44,660.18,1.426]
[1748051991838,1.10390072,660.43,660.18,1.426]
[1748051992032,1.1288764,660.48,660.18,1.426]
[1748051992236,1.60723647,660.47,660.18,1.426]
[1748051992437,1.10389971,660.46,660.18,1.426]
[1748051992633,1.10389971,660.45,660.18,1.426]
[1748051992837,1.1288764,660.48,660.18,1.426]
[1748051992838,1.10389971,660.44,660.18,1.426]
[1748051993037,1.10389971,660.43,660.18,1.426]
[1748051993238,1.1288764,660.48,660.18,1.426]
[1748051993438,1.60716,660.47,660.18,1.426]
[1748051993634,1.103837,660.46,660.18,1.426]
[1748051993833,1.103837,660.45,660.18,1.426]
[1748051994034,1.103837,660.44,660.18,1.426]
[1748051994334,1.1288764,660.48,660.18,1.426]
[1748051994536,1.10383565,660.47,660.18,1.426]
[1748051994836,1.10383616,660.46,660.18,1.426]
[1748051995036,1.10383616,660.45,660.18,1.426]
[1748051995233,1.60711687,660.44,660.18,1.426]
[1748051995433,1.60711687,660.43,660.18,1.426]
[1748051995634,1.60711687,660.42,660.18,1.426]
[1748051995833,1.60704672,660.41,660.18,1.426]
[1748051996133,1.60704672,660.4,660.18,1.426]
[1748051996337,1.60704672,660.39,660.18,1.426]
[1748051996534,1.60603544,660.38,660.18,1.426]
[1748051996739,1.60603544,660.37,660.18,1.426]
[1748051996941,1.60603544,660.36,660.18,1.426]
[1748051997137,1.60603544,660.35,660.18,1.426]
[1748051997337,1.60603544,660.34,660.04,1.12090803]
[1748051997537,1.60603544,660.33,660.04,1.12090803]
[1748051997738,1.60603544,660.32,660.04,1.12090803]
[1748051997939,1.60603544,660.31,660.04,1.12090803]
[1748051998141,1.10301254,660.3,660.04,1.12090803]
[1748051998336,0.30282383,660.45,660.04,1.12090803]
[1748051998337,1.10244119,660.29,660.04,1.12090803]
[1748051998541,1.10244119,660.28,660.04,1.12090803]
[1748051998738,0.30282383,660.45,660.04,1.12090803]
[1748051998935,1.1288764,660.4,659.74,1.12090803]
[1748051999140,1.60515238,660.39,659.74,1.12090803]
[1748051999342,1.60515238,660.38,659.74,1.12090803]
[1748051999541,1.60515238,660.37,659.74,1.12090803]
[1748051999742,1.60515238,660.36,659.74,1.12090803]
[1748051999941,1.60515238,660.35,659.74,1.12090803]
[1748052000143,1.60515238,660.34,659.74,1.12090803]
[1748052000443,1.60515238,660.33,659.74,1.12090803]
[1748052000641,1.60515238,660.32,659.74,1.12090803]
[1748052000839,1.10240574,660.31,659.74,1.12090803]
[1748052001043,1.60495324,660.3,659.74,1.12090803]
[1748052001242,1.10240574,660.29,659.74,1.12090803]
[1748052001439,1.10240574,660.28,659.75,1.159]
[1748052001739,1.10240574,660.27,659.75,1.159]
[1748052001941,1.1288764,660.4,659.75,1.159]
[1748052002142,1.6043991,660.39,659.75,1.159]
[1748052002343,1.6043991,660.38,659.75,1.159]
[1748052002639,1.6043991,660.37,659.75,1.159]
[1748052002839,1.6043991,660.36,659.75,1.159]
[1748052003045,1.60407897,660.35,659.75,1.159]
[1748052003245,1.60407897,660.34,659.75,1.159]
[1748052003444,1.60407897,660.33,659.75,1.159]
[1748052003647,1.60407897,660.32,659.75,1.159]
[1748052003851,1.60407897,660.31,659.75,1.159]
[1748052004048,1.60407897,660.3,659.75,1.159]
[1748052004347,1.60407897,660.29,659.75,1.159]
[1748052004545,1.60407897,660.28,659.75,1.159]
[1748052004750,1.60407897,660.27,659.75,1.159]
[1748052005045,1.60407897,660.26,659.75,1.159]
[1748052005246,1.60407897,660.25,659.75,1.159]
[1748052005450,1.10171768,660.24,659.75,1.159]
[1748052005650,1.10171768,660.23,659.75,1.159]
[1748052005848,1.10171768,660.22,659.75,1.159]
[1748052006043,1.1288764,660.28,659.75,1.159]
[1748052006247,1.60278175,660.27,659.75,1.159]
[1748052006450,1.10094025,660.26,659.75,1.159]
[1748052006651,1.10065037,660.25,659.75,1.159]
[1748052006950,1.10065037,660.24,659.75,1.159]
[1748052007151,1.10065037,660.23,659.75,1.159]
[1748052007349,1.1288764,660.28,659.75,1.159]
[1748052007548,1.10019233,660.27,659.75,1.159]
[1748052007748,1.10019233,660.26,659.75,1.159]
[1748052007949,1.10019233,660.25,659.75,1.159]
[1748052008149,1.10019233,660.24,659.75,1.159]
[1748052008347,1.1288764,660.29,659.75,1.159]
[1748052008549,1.10011381,660.28,659.75,1.159]
[1748052008745,1.10011381,660.27,659.75,1.159]
[1748052008948,1.10011381,660.26,659.75,1.159]
[1748052009145,1.10011381,660.25,659.75,1.159]
[1748052009448,1.1288764,660.29,659.75,1.159]
[1748052009650,1.10027568,660.28,659.75,1.159]
[1748052009848,1.10027417,660.27,659.75,1.159]
[1748052010048,1.10027417,660.26,659.75,1.159]
[1748052010249,1.10027417,660.25,659.75,1.159]
[1748052010453,1.1288764,660.29,659.75,1.159]
[1748052010650,1.10006129,660.28,659.75,1.159]
[1748052010849,1.10006129,660.27,659.75,1.159]
[1748052011050,1.10006129,660.26,659.75,1.159]
[1748052011350,1.1288764,660.35,659.75,1.159]
[1748052011551,1.60078593,660.34,659.75,1.159]
[1748052011849,1.60078593,660.33,659.75,1.159]
[1748052012047,1.60095145,660.32,659.75,1.159]
[1748052012249,1.60095145,660.31,659.75,1.159]
[1748052012451,1.09998511,660.3,659.75,1.159]
[1748052012750,1.09998511,660.29,659.75,1.159]
[1748052012944,1.09998511,660.28,659.75,1.159]
[1748052013148,1.09998511,660.27,659.75,1.159]
[1748052013346,1.1288764,660.35,659.75,1.159]
[1748052013648,1.60044004,660.34,659.75,1.159]
[1748052013846,1.60043037,660.33,659.75,1.159]
[1748052014051,1.60043037,660.32,659.75,1.159]
[1748052014251,1.60043037,660.31,659.75,1.159]
[1748052014451,1.6002444,660.3,659.75,1.159]
[1748052014644,1.09962362,660.29,659.75,1.159]
[1748052014849,1.09962362,660.28,659.75,1.159]
[1748052015045,1.09962362,660.27,659.75,1.159]
[1748052015352,1.09962362,660.26,659.75,1.159]
[1748052015548,1.09962362,660.25,659.75,1.159]
[1748052015750,1.1288764,660.35,659.75,1.159]
[1748052015950,1.59991302,660.34,659.75,1.159]
[1748052016249,1.59991302,660.33,659.75,1.159]
[1748052016550,1.59991302,660.32,659.75,1.159]
[1748052016750,1.59991302,660.31,659.75,1.159]
[1748052016947,1.59991302,660.3,659.75,1.159]
[1748052017149,1.59991302,660.29,659.75,1.159]
[1748052017352,1.59991302,660.28,659.75,1.159]
[1748052017548,1.09912699,660.27,659.75,1.159]
[1748052017746,1.09912699,660.26,659.75,1.159]
[1748052017953,1.09912699,660.25,659.75,1.159]
[1748052018150,1.09912699,660.24,659.75,1.159]
[1748052018352,1.1288764,660.29,659.75,1.159]
[1748052018555,1.09937948,660.28,659.51,1.12090803]
[1748052018754,1.09937948,660.27,659.51,1.12090803]
[1748052018956,1.09937948,660.26,659.51,1.12090803]
[1748052019154,1.09937948,660.25,659.51,1.12090803]
[1748052019354,1.09937948,660.24,659.51,1.12090803]
[1748052019560,1.09937948,660.23,659.51,1.12090803]
[1748052019754,1.1288764,660.29,659.51,1.12090803]
[1748052019949,1.59925929,660.28,659.51,1.12090803]
[1748052020156,1.59925929,660.27,659.51,1.12090803]
[1748052020358,1.09912779,660.26,659.51,1.12090803]
[1748052020561,1.1288764,660.29,659.51,1.12090803]
[1748052020760,1.09898493,660.28,659.51,1.12090803]
[1748052020959,1.09898493,660.27,659.51,1.12090803]
[1748052021155,1.09898583,660.26,659.51,1.12090803]
[1748052021356,1.1288764,660.44,659.4,1.12090803]
[1748052021554,1.90168602,660.43,659.52,1.293]
[1748052021755,1.9016906,660.42,659.52,1.293]
[1748052022060,1.90169519,660.41,659.52,1.293]
[1748052022260,1.90169977,660.4,659.52,1.293]
[1748052022462,1.90170436,660.39,659.52,1.293]
[1748052022662,1.90170895,660.38,659.52,1.293]
[1748052022959,1.59764292,660.37,659.52,1.293]
[1748052023163,1.59764292,660.36,659.52,1.293]
[1748052023461,1.59764292,660.35,659.52,1.293]
[1748052023663,1.90051719,660.34,659.52,1.293]
[1748052023864,1.59764292,660.33,659.52,1.293]
[1748052024063,1.59764292,660.32,659.52,1.293]
[1748052024262,1.59764292,660.31,659.52,1.293]
[1748052024463,1.59764292,660.3,659.52,1.293]
[1748052024661,1.59673223,660.29,659.52,1.293]
[1748052024867,1.59673559,660.28,659.52,1.293]
[1748052025066,1.59673559,660.27,659.52,1.293]
[1748052025365,1.59673559,660.26,659.52,1.293]
[1748052025565,1.59673559,660.25,659.52,1.293]
[1748052025766,0.30287427,660.34,659.52,1.293]
[1748052025767,1.59673559,660.24,659.52,1.293]
[1748052025960,1.59673559,660.23,659.52,1.293]
[1748052026164,1.59673559,660.22,659.52,1.293]
[1748052026362,1.59661889,660.21,659.52,1.293]
[1748052026564,1.09736658,660.2,659.52,1.293]
[1748052026864,1.09736658,660.19,659.52,1.293]
[1748052027064,1.09736658,660.18,659.52,1.293]
[1748052027267,1.09736658,660.17,659.52,1.293]
[1748052027466,1.09736658,660.16,659.52,1.293]
[1748052027668,1.43175067,660.34,659.52,1.293]
[1748052027973,1.89848035,660.33,659.52,1.293]
[1748052028167,1.89848494,660.32,659.52,1.293]
[1748052028467,1.89848952,660.31,659.52,1.293]
[1748052028662,1.89849411,660.3,659.52,1.293]
[1748052028863,1.8984987,660.29,659.52,1.293]
[1748052029068,1.89850328,660.28,659.52,1.293]
[1748052029362,1.59560149,660.27,659.52,1.293]
[1748052029569,1.59560149,660.26,659.52,1.293]
[1748052029868,1.59560149,660.25,659.52,1.293]
[1748052030068,1.59517711,660.24,659.52,1.293]
[1748052030268,1.59517711,660.23,659.52,1.293]
[1748052030470,1.59517711,660.22,659.52,1.293]
[1748052030772,1.09676336,660.21,659.52,1.293]
[1748052030964,1.09676336,660.2,659.52,1.293]
[1748052031164,1.59509688,660.19,659.52,1.293]
[1748052031367,1.59509688,660.18,659.52,1.293]
[1748052031570,1.59509688,660.17,659.52,1.293]
[1748052031766,1.59499215,660.16,659.52,1.293]
[1748052031966,1.59499215,660.15,659.52,1.293]
[1748052032169,1.09676336,660.14,659.52,1.293]
[1748052032367,1.09676336,660.13,659.52,1.293]
[1748052032565,1.09676336,660.12,659.52,1.293]
[1748052032773,1.09676336,660.11,659.52,1.293]
[1748052032970,1.09676336,660.1,659.52,1.293]
[1748052033167,1.09676336,660.09,659.52,1.293]
[1748052033371,0.30290179,660.28,659.52,1.293]
[1748052033575,1.59345078,660.27,659.52,1.293]
[1748052033873,1.89636175,660.26,659.52,1.293]
[1748052034067,1.89636634,660.25,659.52,1.293]
[1748052034273,1.89637093,660.24,659.52,1.293]
[1748052034573,1.89637551,660.23,659.52,1.293]
[1748052034876,1.8963801,660.22,659.52,1.293]
[1748052035074,1.89638469,660.21,659.52,1.293]
[1748052035275,1.89638928,660.2,659.52,1.293]
[1748052035473,1.89614602,660.19,659.52,1.293]
[1748052035675,1.59320293,660.18,659.52,1.293]
[1748052035973,1.89615519,660.17,659.52,1.293]
[1748052036175,1.59320293,660.16,659.52,1.293]
[1748052036474,1.59320293,660.15,659.52,1.293]
[1748052036775,1.59320293,660.14,659.52,1.293]
[1748052036976,1.09532195,660.13,659.52,1.293]
[1748052037172,1.09532195,660.12,659.52,1.293]
[1748052037371,1.09532195,660.11,659.52,1.293]
[1748052037572,1.09532195,660.1,659.52,1.293]
[1748052037769,1.09532195,660.09,659.52,1.293]
[1748052037978,1.09532195,660.08,659.52,1.293]
[1748052038168,0.30295226,660.17,659.52,1.293]
[1748052038474,1.59260626,660.16,659.52,1.293]
[1748052038672,1.8955677,660.15,659.52,1.293]
[1748052038975,1.59250067,660.14,659.52,1.293]
[1748052039177,1.59248085,660.13,659.52,1.293]
[1748052039371,1.09475581,660.12,659.52,1.293]
[1748052039572,1.09475581,660.11,659.52,1.293]
[1748052039776,1.09475581,660.1,659.52,1.293]
[1748052039973,0.30296144,660.15,659.52,1.293]
[1748052039974,1.09475581,660.09,659.52,1.293]
[1748052040171,1.09475581,660.08,659.52,1.293]
[1748052040371,1.09475581,660.07,659.52,1.293]
[1748052040574,1.09475581,660.06,659.52,1.293]
[1748052040775,1.09475581,660.05,659.52,1.293]
[1748052040976,0.30296144,660.15,659.52,1.293]
[1748052041275,1.592069,660.14,659.52,1.293]
[1748052041480,1.89503962,660.13,659.52,1.293]
[1748052041771,1.89504421,660.12,659.52,1.293]
[1748052041975,1.8950488,660.11,659.52,1.293]
[1748052042176,1.592069,660.1,659.52,1.293]
[1748052042376,1.09452986,660.09,659.52,1.293]
[1748052042577,1.09433846,660.08,659.52,1.293]
[1748052042772,1.09433846,660.07,659.52,1.293]
[1748052042972,1.09433846,660.06,659.52,1.293]
[1748052043172,1.09433846,660.05,659.52,1.293]
[1748052043376,1.09433846,660.04,659.52,1.293]
[1748052043576,0.3029798,660.11,659.52,1.293]
[1748052043780,1.59154756,660.1,659.52,1.293]
[1748052043973,1.09419614,660.09,659.52,1.293]
[1748052044178,1.09419614,660.08,659.52,1.293]
[1748052044479,1.09419614,660.07,659.52,1.293]
[1748052044675,1.09419614,660.06,659.52,1.293]
[1748052044875,1.09419614,660.05,659.52,1.293]
[1748052045076,1.09419614,660.04,659.52,1.293]
[1748052045381,0.3029798,660.11,659.52,1.293]
[1748052045588,1.59164411,660.1,659.52,1.293]
[1748052045782,1.09432011,660.09,659.52,1.293]
[1748052045980,1.09432011,660.08,659.52,1.293]
[1748052046180,1.09432011,660.07,659.52,1.293]
[1748052046375,1.09432011,660.06,659.52,1.293]
[1748052046579,1.09432011,660.05,659.52,1.293]
[1748052046781,1.09432011,660.04,659.52,1.293]
[1748052046980,1.09389937,660.03,659.52,1.293]
[1748052047174,1.09389937,660.02,659.52,1.293]
[1748052047378,0.3029798,660.11,659.52,1.293]
[1748052047678,1.59120286,660.1,659.52,1.293]
[1748052047879,1.09406893,660.09,659.52,1.293]
[1748052048179,1.09406893,660.08,659.52,1.293]
[1748052048375,1.09406893,660.07,659.52,1.293]
[1748052048675,1.09406893,660.06,659.52,1.293]
[1748052048975,1.09406893,660.05,659.52,1.293]
[1748052049178,1.09406893,660.04,659.52,1.293]
[1748052049380,0.3029798,660.11,659.52,1.293]
[1748052049580,1.59162409,660.1,659.52,1.293]
[1748052049780,1.0943476,660.09,659.52,1.293]
[1748052049983,1.59160991,660.08,659.52,1.293]
[1748052050175,1.59160991,660.07,659.52,1.293]
[1748052050377,1.59160991,660.06,659.52,1.293]
[1748052050579,0.3029798,660.11,659.52,1.293]
[1748052050580,1.59160991,660.05,659.52,1.293]
[1748052050782,1.59160991,660.04,659.52,1.293]
[1748052051083,1.59160991,660.03,659.52,1.293]
[1748052051283,1.0943476,660.02,659.52,1.293]
[1748052051475,1.09465832,660.01,659.52,1.293]
[1748052051675,1.09465832,660.0,659.52,1.293]
[1748052051881,1.09465832,659.99,659.52,1.293]
[1748052052179,0.3029798,660.11,659.52,1.293]
[1748052052380,1.59052531,660.1,659.52,1.293]
[1748052052576,1.59052531,660.09,659.52,1.293]
[1748052052777,1.59052531,660.08,659.52,1.293]
[1748052052981,1.59052531,660.07,659.52,1.293]
[1748052053181,1.59052531,660.06,659.52,1.293]
[1748052053480,1.59052531,660.05,659.52,1.293]
[1748052053678,1.59052531,660.04,659.52,1.293]
[1748052053881,1.59052531,660.03,659.52,1.293]
[1748052054081,1.59052531,660.02,659.52,1.293]
[1748052054282,1.59052531,660.01,659.52,1.293]
[1748052054483,1.59052531,660.0,659.52,1.293]
[1748052054785,1.59052531,659.99,659.52,1.293]
[1748052054982,1.1288764,660.05,659.52,1.293]
[1748052054983,1.59052531,659.98,659.52,1.293]
[1748052055178,1.59052531,659.97,659.52,1.293]
[1748052055378,1.59052531,659.96,659.52,1.293]
[1748052055580,1.1288764,660.05,659.52,1.293]
[1748052055581,1.59052531,659.95,659.52,1.293]
[1748052055782,1.59052531,659.94,659.52,1.293]
[1748052056081,1.59052531,659.93,659.52,1.293]
[1748052056380,1.09491844,659.92,659.52,1.293]
[1748052056577,1.09491844,659.91,659.52,1.293]
[1748052056784,1.09491844,659.9,659.52,1.293]
[1748052056980,1.09491844,659.89,659.52,1.293]
[1748052057179,1.1288764,660.05,659.52,1.293]
[1748052057385,1.58893908,660.04,659.52,1.293]
[1748052057578,1.58893908,660.03,659.52,1.293]
[1748052057780,1.58893908,660.02,659.52,1.293]
[1748052057982,1.58893908,660.01,659.52,1.293]
[1748052058281,1.58893908,660.0,659.52,1.293]
[1748052058478,1.58893908,659.99,659.52,1.293]
[1748052058677,1.89197856,659.98,659.52,1.293]
[1748052058876,1.58893908,659.97,659.52,1.293]
[1748052059081,1.58891075,659.96,659.52,1.293]
[1748052059284,1.58891075,659.95,659.52,1.293]
[1748052059478,1.58891075,659.94,659.52,1.293]
[1748052059681,1.09330611,659.93,658.94,1.12090803]
[1748052059880,1.09330611,659.92,658.94,1.12090803]
[1748052060080,1.09330611,659.91,658.94,1.12090803]
[1748052060281,1.09330611,659.9,658.94,1.12090803]
[1748052060482,1.0932595,659.89,658.94,1.12090803]
[1748052060683,0.30304407,659.97,658.94,1.12090803]
[1748052060883,1.58803468,659.96,658.94,1.12090803]
[1748052061079,1.58803468,659.95,658.94,1.12090803]
[1748052061284,1.09268418,659.94,658.94,1.12090803]
[1748052061484,1.09268418,659.93,658.94,1.12090803]
[1748052061688,1.09268418,659.92,658.98,1.12090803]
[1748052061884,1.09268418,659.91,658.98,1.12090803]